Cogmind - Beta 12 X6 @@@ ROGUE MODE // 2023.02.10 @ 04:04:23 Player: Cracklepappy Result: Destroyed by S-27 Virus with Autogun Performance ------------- Evolutions (4) 2000 Regions Visited (17) 3400 Robots Destroyed (271) 1355 Value Destroyed (8510) 8510 Prototype IDs (28) 560 Alien Tech Used (0) 0 Bonus (1801) 1801 TOTAL SCORE: 17626 Bonus ------- High Alert Combat Kills 1740 Follower Combat Kills 327 Entered Garrisons 400 Met Data Miner 300 Friendly Fire -966 Cogmind --------- Core Integrity 0/850 Matter 226/300 Energy 272/433 System Corruption 6% Temperature Cool (0) Movement Flying (152) Ox1 Location -6/Lower Caves Parts ------- > --- POWER (3) -------- Antimatter-FC Reactor > --- PROPULSION (4) --- Flying CIT-Cooled Exoskeleton > --- UTILITY (5) ------ Armored Scrap Engine High-capacity Storage Unit Hardened Medium Armor Plating Improved Medium Armor Plating > --- WEAPON (3) ------- Shock Maul > --- INVENTORY (20) --- Advanced Heat Sink Improved Cooling System Advanced Energy Well Experimental Sensor Array Encrypted Comm Array Transmission Jammer Hardened Heavy Armor Plating Heavy Reactive Plating Relay Coupler [Proto] (9) Relay Coupler [Proto] (9) Relay Coupler [Proto] (9) Relay Coupler [Proto] (9) High-powered Tractor Beam Coil Gun Heavy Pick Peak State ------------ > --- POWER ------------ Antimatter-FC Reactor > --- PROPULSION ------- Flying CIT-Cooled Exoskeleton > --- UTILITY ---------- Armored Scrap Engine Advanced Heat Sink High-capacity Storage Unit Encrypted Comm Array > --- WEAPON ----------- Precision Rocket Launcher Hvy. KE Barrage Construct/C > --- INVENTORY -------- Flexi-carbon Leg Flexi-carbon Leg Advanced Heat Sink Advanced Energy Well Experimental Sensor Array Transmission Jammer Advanced Phase Shifter Improved Medium Armor Plating Improved Medium Armor Plating Improved Medium Armor Plating Improved Medium Armor Plating Medium Reactive Plating Hardlight Generator Relay Coupler [Proto] Relay Coupler [Proto] Relay Coupler [Proto] Relay Coupler [Proto] High-powered Tractor Beam Shock Maul Heavy Pick [Rating: 89] Favorites ----------- Power Constructs Engine Cooled Ion Engine Power Core Nuclear Core Reactor Constructs Propulsion Constructs Treads Improved Treads Leg Carbon-fiber Leg Wheel Compact Wheel Flight Unit Constructs Utility High-capacity Storage Unit Device Armored Scrap Engine Storage High-capacity Storage Unit Processor Improved Targeting Computer Hackware Hacking Suite Protection Hardened Medium Armor Plating Weapon Constructs Energy Gun Improved EM Shotgun Energy Cannon Constructs Ballistic Gun Light Assault Rifle Ballistic Cannon Constructs Launcher EMP Blaster Special Weapon Mining Laser Impact Weapon Shock Maul Piercing Weapon Heavy Pick Build | -11 -10 -10 -9 -9 -9 -7 -7 -7 -7 -7 -7 -6 -6 -6 -6 -6 -6 ------- Run | Jun Mat Min Mat Sto Rec Fac Gar Fac Low Low Dat Pro Fac Gar Fac Low Low Slots Evolved 8 | . . . 2 . . 4 . . . . . . 2 . . . . Power 2 | . . . . . . 1 . . . . . . 1 . . . . Propulsion 2 | . . . . . . 2 . . . . . . . . . . . Utility 3 | . . . 2 . . 1 . . . . . . . . . . . Weapon 1 | . . . . . . . . . . . . . 1 . . . . Parts Attached 236 | 7 18 11 28 27 7 5 27 5 11 8 . 13 15 13 34 4 3 Power 11 | 1 3 2 2 1 . . 2 . . . . . . . . . . Engine 7 | 1 3 1 1 1 . . . . . . . . . . . . . Core 4 | . . 1 1 . . . 2 . . . . . . . . . . Reactor . | . . . . . . . . . . . . . . . . . . Propulsion 34 | 2 1 3 4 3 1 2 8 . 3 3 . 2 . 2 . . . Treads 16 | 1 1 1 3 3 1 2 4 . . . . . . . . . . Leg 14 | . . 2 1 . . . 3 . 2 2 . 2 . 2 . . . Wheel 4 | 1 . . . . . . 1 . 1 1 . . . . . . . Hover . | . . . . . . . . . . . . . . . . . . Flight . | . . . . . . . . . . . . . . . . . . Utility 86 | 2 3 . 5 8 2 3 9 2 4 2 . 5 10 6 21 2 2 Device 33 | 1 . . 2 3 2 . 1 2 1 1 . 2 3 4 11 . . Storage 5 | 1 1 . 1 . . 1 . . . . . . 1 . . . . Processor 2 | . 1 . 1 . . . . . . . . . . . . . . Hackware 2 | . . . . . . . 1 . . . . . . . 1 . . Protection 44 | . 1 . 1 5 . 2 7 . 3 1 . 3 6 2 9 2 2 Artifact . | . . . . . . . . . . . . . . . . . . Weapon 105 | 2 11 6 17 15 4 . 8 3 4 3 . 6 5 5 13 2 1 Energy Gun 10 | . . 1 5 1 . . . . 2 1 . . . . . . . Energy Cannon 12 | . . . 4 . . . . . . 1 . 4 3 . . . . Ballistic Gun 33 | 2 8 3 2 8 2 . 5 1 . . . . . 1 1 . . Ballistic Cannon 2 | . . . 2 . . . . . . . . . . . . . . Launcher 29 | . 3 1 4 3 1 . 1 1 2 . . 2 . 1 8 2 . Special Weapon 2 | . . 1 . . . . . . . . . . . 1 . . . Impact Weapon 15 | . . . . 3 1 . 2 1 . 1 . . . 2 4 . 1 Slashing Weapon . | . . . . . . . . . . . . . . . . . . Piercing Weapon 2 | . . . . . . . . . . . . . 2 . . . . Special Melee Weapon . | . . . . . . . . . . . . . . . . . . Unidentified Prototypes 4 | . . . 1 1 . . . . . . . 1 . . 1 . . Corrupted Parts 2 | . . . . . . . . . . . . 1 . 1 . . . System Corruption 2 | . . . . . . . . . . . . 1 . 1 . . . Parts Lost 38 | . 1 7 3 2 . . 12 . . 7 . 1 . 1 2 1 1 Power 6 | . . 1 2 . . . 1 . . . . . . . 1 . 1 Propulsion 12 | . . 2 . . . . 5 . . 4 . 1 . . . . . Utility 9 | . 1 . . 1 . . 3 . . 2 . . . 1 1 . . Weapon 11 | . . 4 1 1 . . 3 . . 1 . . . . . 1 . Highest Loss Streak 7 | . 1 3 1 1 . . 7 . . 4 . 1 . 1 1 1 1 To Critical Strikes . | . . . . . . . . . . . . . . . . . . Average Slot Usage (%) 71 | . 96 98 98 99 73 62 73 88 76 62 61 64 54 53 47 43 46 Engine 6 | . 14 11 3 11 11 7 2 7 7 7 7 3 . . 5 . . Core 2 | . . 1 8 . . . 6 6 . . . 3 6 5 . . . Treads 9 | . 25 23 11 22 14 17 9 7 7 7 7 4 . . . . . Leg 6 | . . 4 10 . . . 13 23 17 12 15 9 1 6 2 . . Device 12 | . 1 . 10 8 20 15 8 14 13 10 7 13 13 12 13 11 6 Storage 8 | . 14 14 11 11 11 7 7 7 7 7 7 7 6 6 6 6 6 Processor 1 | . . . 10 11 1 . . . . . . . . . . . . Protection 6 | . 9 14 11 13 . 6 13 7 8 5 7 7 6 5 5 6 13 Energy Gun 2 | . . 8 4 10 . . . . 3 4 7 1 1 . . . . Energy Cannon 2 | . . . 11 . . . . . . . . 5 6 3 4 . . Ballistic Gun 5 | . 27 15 5 9 6 . 2 3 4 . . 4 . 2 . . . Ballistic Cannon 1 | . . . . . 4 7 2 . . 1 . . 3 3 1 4 . Impact Weapon 1 | . . . . . 3 . 4 6 1 1 . . . 1 . . 6 Naked Turns . | . . . . . . . . . . . . . . . . . . Heaviest Build 90 | 11 28 30 56 64 64 65 75 75 72 68 61 69 87 86 90 84 69 Greatest Support 78 | 10 40 40 46 46 46 62 69 45 45 45 20 42 58 70 78 78 60 Greatest Overweight (x) 17 | 1 1 1 2 1 17 3 4 1 3 4 3 3 2 1 1 1 1 Average Overweight (x) 1 | . . . 1 1 3 . 1 1 1 2 3 1 1 . 1 . 1 Largest Inventory Capacity 20 | 8 15 15 20 20 20 20 20 20 20 20 20 20 20 20 20 20 20 Average Capacity 19 | 7 11 15 18 20 20 20 20 20 20 20 20 20 20 20 20 20 20 Most Carried 20 | 8 11 15 20 20 20 20 20 20 20 20 20 20 20 20 20 20 19 Average Carried 18 | 7 9 13 17 19 19 19 17 19 19 19 20 18 18 19 19 18 17 Final Capacity 20 | 8 15 15 20 20 20 20 20 20 20 20 20 20 20 20 20 20 20 Final Carried 20 | 8 11 13 20 20 20 20 17 20 19 20 20 17 19 20 20 18 17 Scrap Engine Consumption 196 | . . . . . 20 6 19 3 12 5 . 17 28 39 40 7 . Constructs Created 8 | . . . . . 2 . 3 . 1 1 . . 1 . . . . Constructs Modified 76 | . . . . . 5 . 4 1 5 1 . 10 12 18 19 1 . Class Distribution -------------------- 55% | Construct 27% | Mutant 9% | Scavenger-Mutant 7% | Commander-Construct Dominant Class ---------------- Mutant | -10/Materials Scavenger-Mutant | -10/Mines Mutant | -9/Materials Mutant | -9/Storage Commander-Construct | -9/Recycling Commander-Construct | -7/Factory Scavenger-Mutant | -7/Garrison Scavenger-Mutant | -7/Factory Construct | -7/Lower Caves Construct | -7/Lower Caves Construct | -7/Data Miner Construct | -6/Proximity Caves Construct | -6/Factory Construct | -6/Garrison Construct | -6/Factory Construct | -6/Lower Caves Construct | -6/Lower Caves Resources | -11 -10 -10 -9 -9 -9 -7 -7 -7 -7 -7 -7 -6 -6 -6 -6 -6 -6 ----------- Run | Jun Mat Min Mat Sto Rec Fac Gar Fac Low Low Dat Pro Fac Gar Fac Low Low Matter Collected 5459 | 360 327 175 461 721 268 . 410 61 288 361 . 340 179 344 1015 149 . Remotely 399 | . . . . 50 . . . . . . . . . . 349 . . Salvage Created 11840 | 238 444 366 628 2120 1577 . 734 250 573 488 . 600 200 1147 2211 222 42 Parts 568 | 24 35 25 45 118 35 . 39 21 8 21 . 20 13 66 86 10 2 Haulers Intercepted 10 | . 2 . 2 4 . . . 1 . . . . . . 1 . . Recyclers Shooed 16 | . 1 2 3 . 4 . . 2 . . . . . . 4 . . Parts Field Recycled . | . . . . . . . . . . . . . . . . . . Retrieved Matter . | . . . . . . . . . . . . . . . . . . Parts Self-Destructed 57 | . . . . . . . . . 13 22 . 18 . . . 4 . Prevented 4 | . . . . . . . . . . 4 . . . . . . . Kills | -11 -10 -10 -9 -9 -9 -7 -7 -7 -7 -7 -7 -6 -6 -6 -6 -6 -6 ------- Run | Jun Mat Min Mat Sto Rec Fac Gar Fac Low Low Dat Pro Fac Gar Fac Low Low Combat Hostiles Destroyed 200 | . 13 11 22 39 2 . 16 6 5 12 . 10 4 23 32 3 2 Melee 10 | . . . . . 1 . 2 . . . . . 2 3 . . 2 Guns 60 | . 6 7 2 30 1 . 4 . 1 4 . 1 1 3 . . . Cannons 43 | . . . 8 . . . 6 . . 3 . 2 1 8 15 . . AOE 71 | . 7 4 12 7 . . 2 6 3 3 . 7 . 3 14 3 . Classes Destroyed 21 | 3 4 . 2 2 1 . 4 1 2 . . . . 1 1 . . Worker 6 | 2 . . 2 2 . . . . . . . . . . . . . Builder 7 | . . . 1 . 2 . . 1 . . . . . . 3 . . Tunneler 9 | 8 1 . . . . . . . . . . . . . . . . Hauler 10 | . 2 . 2 4 . . . 1 . . . . . . 1 . . Recycler 23 | 1 1 . . 2 13 . . 1 . . . . . . 5 . . Mechanic 1 | . . . . . . . . . . . . . . . 1 . . Operator 3 | . . . . . . . . 1 . . . . . . 2 . . Drone 2 | . . . . . 2 . . . . . . . . . . . . Watcher 9 | . 2 . 1 2 . . . 2 . . . . . . 2 . . Swarmer 60 | . 6 3 14 7 . . 4 6 . 2 . 6 . 7 . 3 2 Cutter 2 | . . . . . . . . . . . . . . 2 . . . Grunt 84 | . 7 8 4 20 . . 4 . 3 7 . 4 . 7 20 . . Brawler 4 | . . . . 1 . . . . . 2 . . . . 1 . . Duelist 4 | . . . . . . . 2 . 1 . . . . . 1 . . Protector 2 | . . . . 1 . . . . . . . . . . 1 . . Sentry 21 | . . . 4 10 . . 2 . . 1 . . . 3 1 . . Specialist 2 | . . . . . . . 1 . . . . . . . 1 . . Hunter 10 | . . . . . . . 2 . 1 . . . . 2 5 . . Programmer 9 | . . . . . . . 1 . . . . . 4 2 2 . . Samaritan 6 | . . . . . . . . . 2 . . 3 . . . 1 . Butcher 1 | . . . . . . . . . 1 . . . . . . . . Mutant 1 | . . . . . . . . . 1 . . . . . . . . Infiltrator 1 | . . . . . . . . . . . . . . . 1 . . Best Kill Streak 8 | 3 5 5 6 6 5 . 5 5 4 4 . 7 1 4 8 3 2 Combat Bots Only 8 | . 4 5 4 5 1 . 5 3 4 4 . 7 1 4 8 3 2 Max Kills in Single Turn 4 | 1 4 2 4 2 1 . 2 2 2 2 . 2 1 2 3 3 1 Gunslinging 1 | . . . . 1 . . . . . . . . . . . . . Exploded 3 | . 3 2 3 2 . . 2 2 2 2 . 2 . 2 2 3 . Melee 1 | . . . . . 1 . 1 . . . . . 1 1 . . 1 Uniques/NPCs Destroyed . | . . . . . . . . . . . . . . . . . . Combat | -11 -10 -10 -9 -9 -9 -7 -7 -7 -7 -7 -7 -6 -6 -6 -6 -6 -6 -------- Run | Jun Mat Min Mat Sto Rec Fac Gar Fac Low Low Dat Pro Fac Gar Fac Low Low Damage Taken 14394 | . 425 806 695 962 16 . 3013 375 259 912 . 780 446 1804 3016 602 283 Core 1971 | . 57 174 99 143 . . 345 50 16 106 . 121 77 165 520 52 46 Absorbed by Shields 386 | . . . . 29 6 . 177 . . . . . . 174 . . . Redirected to Shielding 18 | . . 3 15 . . . . . . . . . . . . . . Regen/Repaired (Parts) 3550 | . . . . . . . 305 22 216 85 . 510 258 906 996 252 . Core Remaining (%) 38 | 100 . 7 . . 39 . . . . . . 8 . . . . . Volleys Fired 776 | 50 48 41 58 86 49 7 72 13 45 30 . 68 22 66 108 13 . Largest 3 | 2 2 2 2 2 2 1 2 1 2 2 . 2 3 3 2 1 . Hottest 234 | 40 50 100 128 90 48 48 51 30 106 123 . 129 201 168 234 234 . Shots Fired 1167 | 100 93 75 109 167 64 7 101 13 67 47 . 75 25 102 109 13 . Gun 713 | 100 86 65 27 152 56 . 48 6 55 23 . 56 2 33 4 . . Cannon 351 | . . . 75 . 8 7 51 . 9 20 . 11 23 46 90 11 . Launcher 78 | . 7 5 7 15 . . 2 7 3 4 . 8 . 3 15 2 . Special 25 | . . 5 . . . . . . . . . . . 20 . . . Kinetic 690 | 100 86 64 23 76 64 7 99 6 9 14 . 54 1 45 31 11 . Thermal 263 | . . 6 71 . . . . . 55 21 . 11 24 40 35 . . Explosive 63 | . 7 5 7 . . . 2 7 3 4 . 8 . 3 15 2 . Electromagnetic 151 | . . . 8 91 . . . . . 8 . 2 . 14 28 . . Robot Hit Streak 29 | 7 7 9 12 29 20 . 14 5 11 9 . 7 5 13 9 3 . Robot Miss Streak 8 | 3 4 3 4 3 4 . 8 1 2 2 . 3 1 3 3 4 . Penetration Max 1 | . . . . . . . . . . 1 . . . . 1 . . Secondary Targets 8 | . 1 3 . 4 . . . . . . . . . . . . . Max Gunslinging Chain 1 | . 1 1 . 1 . . . . . . . . . . . . . Shots Hit Robots 834 | 63 48 50 75 143 54 . 73 8 56 36 . 40 17 86 78 5 2 Core Hits 486 | 21 33 26 38 85 22 . 29 15 32 25 . 33 7 42 72 5 1 Critical Kills 1 | . . . . . . . . . . . . . . . 1 . . Critical Parts Destroyed 21 | . . . . 1 5 . 1 3 1 1 . . . 6 2 . 1 Critical Strikes 30 | . . . 1 1 5 . 1 3 3 2 . . 2 6 5 . 1 Burn 2 | . . . . . . . . . 2 . . . . . . . . Destroy 2 | . . . . . . . . . . . . . . . 2 . . Blast 1 | . . . 1 . . . . . . . . . . . . . . Corrupt 1 | . . . . . . . . . . 1 . . . . . . . Smash 22 | . . . . 1 5 . 1 3 1 1 . . . 6 3 . 1 Impale 2 | . . . . . . . . . . . . . 2 . . . . Melee Attacks 105 | . . . . 3 9 . 13 15 1 2 . . 24 22 11 . 5 Impact 81 | . . . . 3 9 . 13 15 1 2 . . . 22 11 . 5 Slashing . | . . . . . . . . . . . . . . . . . . Piercing 24 | . . . . . . . . . . . . . 24 . . . . Sneak Attacks 10 | . . . . . 5 . . 2 . 1 . . . . 2 . . Combat Hostiles 1 | . . . . . 1 . . . . . . . . . . . . Follow-up Attacks . | . . . . . . . . . . . . . . . . . . Damage Inflicted 27378 | 518 1025 634 1965 3019 1723 . 1890 945 1508 1148 . 1699 497 2951 6834 936 86 Guns 7669 | 518 434 427 190 2112 668 . 526 101 900 278 . 858 44 553 60 . . Cannons 7702 | . . . 1059 . 82 . 692 . 133 363 . 129 110 1097 3553 484 . Explosions 8014 | . 589 202 716 737 . . 154 535 350 391 . 712 . 426 2750 452 . Melee 3706 | . . . . 126 945 . 518 309 125 116 . . 343 667 471 . 86 Ramming 89 | . 2 5 . 44 28 . . . . . . . . 10 . . . Kinetic 8654 | 518 434 416 184 984 750 . 1218 101 133 249 . 858 . 1115 1210 484 . Thermal 4731 | . . 11 999 180 . . . . 900 287 . 129 154 467 1604 . . Explosive 7067 | . 589 202 716 116 . . 154 535 350 391 . 712 . 426 2424 452 . Electromagnetic 3131 | . . . 66 1569 . . . . . 105 . . . 266 1125 . . Impact 3363 | . . . . 126 945 . 518 309 125 116 . . . 667 471 . 86 Slashing . | . . . . . . . . . . . . . . . . . . Piercing 343 | . . . . . . . . . . . . . 343 . . . . Highest Corruption 6 | . . . 1 1 1 . 1 1 . 4 . 1 3 6 6 6 6 Average Corruption 2 | . . . 1 1 1 . 1 1 . 2 . 1 2 4 6 6 6 Corruption Purged 5 | . . . . . . . . 1 . 4 . . . . . . . Corruption Blocked 8 | . . . . . . . . . . . . . 8 . . . . Effects 206 | . . . . 19 22 . 8 1 . 3 . 11 16 46 65 13 2 Message Errors 46 | . . . . 4 7 . 4 1 . . . 3 5 10 8 3 1 Matter Fused 57 | . . . . 3 5 . 2 . . 1 . 3 6 12 20 4 1 Heat Flow Errors 26 | . . . . 3 3 . . . . 2 . . . 7 11 . . Energy Discharges 32 | . . . . 4 2 . . . . . . 2 2 7 11 4 . Data Loss (minor) 23 | . . . . 2 3 . 2 . . . . . 2 6 7 1 . Data Loss (major) 8 | . . . . 2 1 . . . . . . 1 . 1 3 . . Misfires 3 | . . . . 1 1 . . . . . . . . . 1 . . Alerts 6 | . . . . . . . . . . . . 1 1 2 1 1 . Weapon Failures 5 | . . . . . . . . . . . . 1 . 1 3 . . Overload Shots . | . . . . . . . . . . . . . . . . . . Overflow Damage 2868 | . . 1 17 80 779 . 162 317 132 38 . 51 62 319 662 205 43 Projectiles 597 | . . . 7 1 . . 10 . 7 . . 17 38 10 304 203 . Explosions 209 | . . 1 10 . . . . 8 . 12 . 34 . . 142 2 . Melee 2062 | . . . . 79 779 . 152 309 125 26 . . 24 309 216 . 43 Knockbacks 45 | . . . 3 1 4 . 11 1 2 6 . . . 4 12 1 . Impact 12 | . . . . 1 4 . 2 1 . . . . . 1 3 . . Kinetic 32 | . . . 3 . . . 9 . 2 6 . . . 3 8 1 . Secondary 1 | . . . . . . . . . . . . . . . 1 . . Self-Inflicted Damage 345 | . . 27 . 14 . . 24 86 37 . . 75 . 49 . 33 . Shots 14 | . . 2 . 2 . . 1 3 1 . . 3 . 1 . 1 . Rammed 16 | . 1 6 . 4 5 . . . . . . . . . . . . Targets Rammed 19 | . 1 6 . 5 5 . . . . . . . . 2 . . . Kicked 2 | . . . . . . . . . . . . . . 2 . . . Crushed 1 | . . . . 1 . . . . . . . . . . . . . Highest Temperature 586 | . 42 54 27 148 177 22 210 . 93 305 . 246 132 296 586 442 . Average Temperature 88 | . 20 16 7 31 63 22 68 . 29 90 . 91 53 103 135 115 . Received Heat Transfer 3559 | . 204 456 171 406 6 . 702 6 63 243 . 150 . 359 625 168 . Effects 16 | . . . . . . . . . . 1 . . . 1 11 3 . Shutdowns 3 | . . . . . . . . . . . . . . . 2 1 . Energy Bleed 3 | . . . . . . . . . . 1 . . . 1 1 . . Interference 7 | . . . . . . . . . . . . . . . 5 2 . Matter Decay 1 | . . . . . . . . . . . . . . . 1 . . Damage (minor) 1 | . . . . . . . . . . . . . . . 1 . . Damage (core) 1 | . . . . . . . . . . . . . . . 1 . . Siege Activations . | . . . . . . . . . . . . . . . . . . Robots Corrupted 4 | . . . . 1 . . . . . . . . . 1 2 . . Combat Hostiles 3 | . . . . . . . . . . . . . . 1 2 . . Parts Fried 33 | . . . 1 7 4 . . 4 1 . . . . 4 11 . 1 Impact Corruptions 49 | . . . . 4 14 . 6 3 2 1 . . . 11 7 . 1 Robots Melted 2 | . . . . . . . . . 1 1 . . . . . . . Combat Hostiles 2 | . . . . . . . . . 1 1 . . . . . . . Parts Melted 24 | . . . 6 . . . . . 6 5 . 1 2 1 3 . . Heat Transferred 6960 | . . 25 1962 332 . . . . 2015 555 . 250 74 666 1081 . . Parts Sabotaged 2 | . . . . . . . . . . . . . . . 2 . . Parts Stolen . | . . . . . . . . . . . . . . . . . . Parts Stripped . | . . . . . . . . . . . . . . . . . . Power Chain Reactions 4 | . . . . 4 . . . . . . . . . . . . . Missiles Intercepted . | . . . . . . . . . . . . . . . . . . Alert | -11 -10 -10 -9 -9 -9 -7 -7 -7 -7 -7 -7 -6 -6 -6 -6 -6 -6 ------- Run | Jun Mat Min Mat Sto Rec Fac Gar Fac Low Low Dat Pro Fac Gar Fac Low Low Peak Influence 1238 | 55 378 195 424 916 525 1095 1087 826 . . . . 121 925 1238 . . Initial 1091 | . 35 60 . 178 351 1091 776 570 . . . . 23 9 485 . . Average 420 | 22 206 81 141 565 319 1093 946 697 . . . . 28 420 817 . . Maximum Alert Level 4 | . 1 . 2 3 2 3 3 3 . . . . . 3 4 . . Low Security (%) 29 | 100 37 100 64 6 5 . . . . . . . 100 29 . . . Level 1 28 | . 62 . 30 20 72 . . . . . . . . 25 . . . Level 2 16 | . . . 5 45 22 . . 56 . . . . . 24 17 . . Level 3 24 | . . . . 27 . 100 100 43 . . . . . 20 70 . . Level 4 1 | . . . . . . . . . . . . . . . 12 . . Level 5 . | . . . . . . . . . . . . . . . . . . High Security . | . . . . . . . . . . . . . . . . . . Max Security . | . . . . . . . . . . . . . . . . . . Squads Dispatched 30 | . 3 . 3 7 . . . 1 . 1 . . 4 . 11 . . Investigation 5 | . 1 . 2 1 . . . . . . . . . . 1 . . Extermination 6 | . . . . . . . . . . . . . 4 . 2 . . Reinforcement 11 | . 2 . 1 3 . . . . . . . . . . 5 . . Assault 8 | . . . . 3 . . . 1 . 1 . . . . 3 . . Garrison . | . . . . . . . . . . . . . . . . . . Intercept . | . . . . . . . . . . . . . . . . . . Searches Triggered . | . . . . . . . . . . . . . . . . . . Data Miner Redirects 2 | . . . . . . . . . . . . . . . 2 . . Construction Impeded 1 | . . . . . . . . . . . . . . . 1 . . Haulers Reinforced 1 | . . . . . . . . . . . . . . . 1 . . Active Scanning Responses . | . . . . . . . . . . . . . . . . . . Cargo Convoy Interrupts 1 | . . . . . . . . . . . . . . . 1 . . Stealth | -11 -10 -10 -9 -9 -9 -7 -7 -7 -7 -7 -7 -6 -6 -6 -6 -6 -6 --------- Run | Jun Mat Min Mat Sto Rec Fac Gar Fac Low Low Dat Pro Fac Gar Fac Low Low Distress Signals 20 | . 3 . 5 4 6 . . . . . . . 1 . 1 . . Communications Jammed 5 | . . . . . . . . 5 . . . . . . . . . Distress Signals 5 | . . . . . . . . 5 . . . . . . . . . Times Spotted 395 | . 19 11 33 50 111 . 17 11 5 18 . 18 7 25 53 13 4 Peak Tracking Total 11 | . 5 5 6 6 7 . 6 3 4 11 . 5 2 4 5 10 4 Tactical Retreats 18 | . 2 . 2 1 . . 1 1 . 3 . 1 . 2 3 2 . Traps | -11 -10 -10 -9 -9 -9 -7 -7 -7 -7 -7 -7 -6 -6 -6 -6 -6 -6 ------- Run | Jun Mat Min Mat Sto Rec Fac Gar Fac Low Low Dat Pro Fac Gar Fac Low Low Traps Triggered 14 | . 4 . . . . . 3 . . . . . . 6 1 . . Indirectly . | . . . . . . . . . . . . . . . . . . Trap Hack Attempts . | . . . . . . . . . . . . . . . . . . Triggered . | . . . . . . . . . . . . . . . . . . Disarmed . | . . . . . . . . . . . . . . . . . . Reprogrammed . | . . . . . . . . . . . . . . . . . . Reused . | . . . . . . . . . . . . . . . . . . Traps Extracted . | . . . . . . . . . . . . . . . . . . Installed . | . . . . . . . . . . . . . . . . . . Triggered 2 | . . . . . . . . . . . . 1 . . 1 . . Most Traps Carried 1 | . . . . . . . . . 1 1 1 1 1 1 . . . Machines | -11 -10 -10 -9 -9 -9 -7 -7 -7 -7 -7 -7 -6 -6 -6 -6 -6 -6 ---------- Run | Jun Mat Min Mat Sto Rec Fac Gar Fac Low Low Dat Pro Fac Gar Fac Low Low Machines Disabled 22 | . . . . 5 1 . . 1 . . . . . 1 14 . . Max in Single Turn 9 | . . . . 1 1 . . 1 . . . . . 1 9 . . Garrison Access 2 | . . . . . . . . 1 . . . . . . 1 . . Machines Repaired . | . . . . . . . . . . . . . . . . . . Machines Sabotaged . | . . . . . . . . . . . . . . . . . . Overloaded Fab Kills . | . . . . . . . . . . . . . . . . . . Hacking | -11 -10 -10 -9 -9 -9 -7 -7 -7 -7 -7 -7 -6 -6 -6 -6 -6 -6 --------- Run | Jun Mat Min Mat Sto Rec Fac Gar Fac Low Low Dat Pro Fac Gar Fac Low Low Machines Accessed 57 | . 8 . 5 8 11 2 3 2 . . 4 . 7 2 5 . . Terminals 33 | . 7 . 3 6 6 . 3 1 . . . . 3 2 2 . . Fabricators 2 | . . . . . . . . . . . . . 1 . 1 . . Repair Stations 4 | . . . 1 1 . 1 . . . . . . 1 . . . . Recycling Units 8 | . 1 . . 1 5 . . . . . . . . . 1 . . Scanalyzers 2 | . . . 1 . . . . . . . . . 1 . . . . Garrison Access 4 | . . . . . . 1 . 1 . . . . 1 . 1 . . Total Hacks 140 | . 19 . 13 13 28 3 4 2 . . 29 . 12 5 12 . . Successful 74 | . 8 . 4 5 17 1 . . . . 29 . 4 2 4 . . Failed 66 | . 11 . 9 8 11 2 4 2 . . . . 8 3 8 . . Catastrophic 17 | . 2 . 3 2 . . 2 2 . . . . 2 1 3 . . Database Lockouts . | . . . . . . . . . . . . . . . . . . Manual 45 | . 13 . 2 3 15 . . 1 . . . . 3 3 5 . . Terminals 74 | . 18 . 6 10 19 . 4 1 . . . . 6 5 5 . . Fabricators 2 | . . . . . . . . . . . . . 1 . 1 . . Repair Stations 9 | . . . 3 2 . 2 . . . . . . 2 . . . . Recycling Units 16 | . 1 . . 1 9 . . . . . . . . . 5 . . Scanalyzers 5 | . . . 4 . . . . . . . . . 1 . . . . Garrison Access 5 | . . . . . . 1 . 1 . . . . 2 . 1 . . Terminal Hacks 54 | . 7 . 1 3 11 . . . . . 29 . . 2 1 . . Record 12 | . . . . . 1 . . . . . 11 . . . . . . Part Schematic 14 | . 2 . . . 3 . . . . . 9 . . . . . . Robot Schematic 6 | . . . . . . . . . . . 6 . . . . . . Robot Analysis 5 | . 2 . . . 3 . . . . . . . . . . . . Prototype ID Bank 9 | . 3 . . 1 2 . . . . . 3 . . . . . . Open Door 2 | . . . . 2 . . . . . . . . . . . . . Branch Access Points 2 | . . . 1 . . . . . . . . . . . 1 . . Emergency Access Points 1 | . . . . . . . . . . . . . . 1 . . . Alert Level 2 | . . . . . 2 . . . . . . . . . . . . Security Stations 1 | . . . . . . . . . . . . . . 1 . . . Fabricator Hacks 1 | . . . . . . . . . . . . . 1 . . . . Network Status 1 | . . . . . . . . . . . . . 1 . . . . Repair Station Hacks 4 | . . . 1 1 . . . . . . . . 2 . . . . Scan Component 3 | . . . 1 1 . . . . . . . . 1 . . . . Repair 1 | . . . . . . . . . . . . . 1 . . . . Recycling Unit Hacks 4 | . . . . . 3 . . . . . . . . . 1 . . Retrieve Components 4 | . . . . . 3 . . . . . . . . . 1 . . Scanalyzer 2 | . . . 2 . . . . . . . . . . . . . . Insert Component 2 | . . . 2 . . . . . . . . . . . . . . Garrison Access Hacks 3 | . . . . . . 1 . . . . . . 1 . 1 . . Unlock Access 2 | . . . . . . 1 . . . . . . 1 . . . . Seal Access 1 | . . . . . . . . . . . . . . . 1 . . Unauthorized Hacks 6 | . 1 . . 1 3 . . . . . . . . . 1 . . Terminals . | . . . . . . . . . . . . . . . . . . Fabricators . | . . . . . . . . . . . . . . . . . . Repair Stations . | . . . . . . . . . . . . . . . . . . Recycling Units 6 | . 1 . . 1 3 . . . . . . . . . 1 . . Reject 1 | . . . . . . . . . . . . . . . 1 . . Tunnel 5 | . 1 . . 1 3 . . . . . . . . . . . . Scanalyzers . | . . . . . . . . . . . . . . . . . . Garrison Access . | . . . . . . . . . . . . . . . . . . Data Cores Recovered 2 | . . . . . . . . 1 . . . . . . 1 . . Used 1 | . . . . . . . . . . . . . . . 1 . . Hacking Detections 45 | . 7 . 5 7 8 1 3 2 . . . . 6 2 4 . . Full Trace Events 3 | . . . 2 . . . . . . . . . . . 1 . . Feedback Events 1 | . . . 1 . . . . . . . . . . . . . . Corruption 1 | . . . 1 . . . . . . . . . . . . . . Feedback Blocked . | . . . . . . . . . . . . . . . . . . Robot Schematics Acquired 6 | . . . . . . . . . . . 6 . . . . . . Robots Built . | . . . . . . . . . . . . . . . . . . Authchips . | . . . . . . . . . . . . . . . . . . Time . | . . . . . . . . . . . . . . . . . . Total Robot Build Rating . | . . . . . . . . . . . . . . . . . . Part Schematics Acquired 14 | . 2 . . . 3 . . . . . 9 . . . . . . Parts Built . | . . . . . . . . . . . . . . . . . . Authchips . | . . . . . . . . . . . . . . . . . . Time . | . . . . . . . . . . . . . . . . . . Total Part Build Rating . | . . . . . . . . . . . . . . . . . . Parts Repaired 1 | . . . . . . . . . . . . . 1 . . . . Time 68 | . . . . . . . . . . . . . 68 . . . . Parts Recycled . | . . . . . . . . . . . . . . . . . . Recycled Matter . | . . . . . . . . . . . . . . . . . . Retrieved Matter . | . . . . . . . . . . . . . . . . . . Retrieved Components 11 | . . . . . 2 . . . . . . . . . 9 . . Parts Scanalyzed 1 | . . . 1 . . . . . . . . . . . . . . Part Schematics Acquired . | . . . . . . . . . . . . . . . . . . Parts Damaged . | . . . . . . . . . . . . . . . . . . Bothacking | -11 -10 -10 -9 -9 -9 -7 -7 -7 -7 -7 -7 -6 -6 -6 -6 -6 -6 ------------ Run | Jun Mat Min Mat Sto Rec Fac Gar Fac Low Low Dat Pro Fac Gar Fac Low Low Used RIF Installer . | . . . . . . . . . . . . . . . . . . Robots Hacked . | . . . . . . . . . . . . . . . . . . Non-combat . | . . . . . . . . . . . . . . . . . . Combat . | . . . . . . . . . . . . . . . . . . Robot Hacks Applied . | . . . . . . . . . . . . . . . . . . Relay Couplers Released 2 | . . . . . . . . 2 . . . . . . . . . Machine Destruction 2 | . . . . . . . . 2 . . . . . . . . . Fabnet Peak Effective % . | . . . . . . . . . . . . . . . . . . Robots Rewired 10 | . . . . . 8 . . . . 2 . . . . . . . Allies Hacked . | . . . . . . . . . . . . . . . . . . Hacks Repelled . | . . . . . . . . . . . . . . . . . . Allies | -11 -10 -10 -9 -9 -9 -7 -7 -7 -7 -7 -7 -6 -6 -6 -6 -6 -6 -------- Run | Jun Mat Min Mat Sto Rec Fac Gar Fac Low Low Dat Pro Fac Gar Fac Low Low Total Allies 13 | . . . . 2 8 . . . . 2 . 1 . . . . . Largest Group 7 | . . . . 2 7 4 4 . . 2 1 2 . . . . . Highest-Rated Group 128 | . . . . 62 81 51 51 . . 48 32 128 . . . . . Highest-Rated Ally 96 | . . . . 31 27 27 27 . . 32 32 96 . . . . . Warlord Squad Rendezvous 4 | . . . . . . . . . . . . . 1 . 3 . . Dakka 1 | . . . . . . . . . . . . . . . 1 . . Infantry 1 | . . . . . . . . . . . . . . . 1 . . Muscle 1 | . . . . . . . . . . . . . . . 1 . . Geek 1 | . . . . . . . . . . . . . 1 . . . . Total Orders 10 | . . . . . 10 . . . . . . . . . . . . STAY 2 | . . . . . 2 . . . . . . . . . . . . FOLLOW 7 | . . . . . 7 . . . . . . . . . . . . DROP 1 | . . . . . 1 . . . . . . . . . . . . Ally Attacks 415 | . . . . 9 368 . . . . 13 . 25 . . . . . Total Damage 2507 | . . . . 167 1301 . . . . 370 . 669 . . . . . Kills 53 | . . . . 1 43 . . . . 2 . 7 . . . . . Allies Corrupted . | . . . . . . . . . . . . . . . . . . Allies Melted . | . . . . . . . . . . . . . . . . . . Intel | -11 -10 -10 -9 -9 -9 -7 -7 -7 -7 -7 -7 -6 -6 -6 -6 -6 -6 ------- Run | Jun Mat Min Mat Sto Rec Fac Gar Fac Low Low Dat Pro Fac Gar Fac Low Low Robot Analysis Total 5 | . 2 . . . 3 . . . . . . . . . . . . Derelict Logs Recovered 3 | . . . . . . . . . 1 1 . . . . . 1 . Drone Launches . | . . . . . . . . . . . . . . . . . . Drone Recoveries . | . . . . . . . . . . . . . . . . . . Exploration | -11 -10 -10 -9 -9 -9 -7 -7 -7 -7 -7 -7 -6 -6 -6 -6 -6 -6 ------------- Run | Jun Mat Min Mat Sto Rec Fac Gar Fac Low Low Dat Pro Fac Gar Fac Low Low Turns Passed 23604 | 331 1316 819 989 1736 3926 184 1416 508 2506 1628 271 1560 1791 2171 2000 418 34 Spaces Moved 8962 | 225 766 394 336 563 1056 78 549 213 878 516 83 428 768 872 950 277 10 Core 96 | 5 . . . . 91 . . . . . . . . . . . . Treads 3460 | . 619 343 163 563 965 78 185 . . 15 . 214 78 136 101 . . Legs 3481 | . . 51 173 . . . 353 213 735 400 83 214 154 736 369 . . Wheels 622 | 220 147 . . . . . 11 . 143 101 . . . . . . . Hover 536 | . . . . . . . . . . . . . 536 . . . . Flight 767 | . . . . . . . . . . . . . . . 480 277 10 Fastest Speed 50 | 50 80 160 190 240 130 145 160 190 145 145 330 209 158 73 126 95 152 Average Speed 205 | 79 146 163 220 240 307 185 197 190 212 267 330 277 203 155 160 131 152 Slowest Speed 900 | 95 160 190 260 240 900 262 276 190 260 531 330 354 314 219 179 152 152 Overloaded Moves . | . . . . . . . . . . . . . . . . . . Propulsion Burnouts . | . . . . . . . . . . . . . . . . . . Robots Hopped . | . . . . . . . . . . . . . . . . . . Cave-ins Triggered . | . . . . . . . . . . . . . . . . . . Exploration Rate (%) 48 | 8 95 61 37 83 99 3 47 7 96 70 70 49 19 63 25 40 5 Regions Visited 17 Branch Regions 9 Pre-discovered Areas 8 | . 1 . . 1 3 . . . 1 1 1 . . . . . . Known Exits Taken 4 | . . . 1 . . 1 . . . . . . 1 . 1 . . Unknown Exits Taken 11 | 1 1 1 . 1 1 . . 1 1 1 1 1 . . . 1 . Scrap Searched 6 | . . . . . . . . . 2 3 . 1 . . . . . Spaces Dug 147 | . 7 14 6 1 . 5 5 29 . . . 12 23 4 20 21 . Terrain Destroyed 512 | . 44 44 33 16 4 5 10 37 13 5 . 59 24 7 169 42 . Melee 22 | . . . . 1 . . 1 9 . . . . 8 1 2 . . Projectile 85 | . . 5 . . 4 5 . . . . . 11 16 3 34 7 . AOE 405 | . 44 39 33 15 . . 9 28 13 5 . 48 . 3 133 35 . Terrain Rammed . | . . . . . . . . . . . . . . . . . . Walls Destroyed . | . . . . . . . . . . . . . . . . . . Machines Disabled . | . . . . . . . . . . . . . . . . . . Actions | -11 -10 -10 -9 -9 -9 -7 -7 -7 -7 -7 -7 -6 -6 -6 -6 -6 -6 --------- Run | Jun Mat Min Mat Sto Rec Fac Gar Fac Low Low Dat Pro Fac Gar Fac Low Low Total 12804 | 298 878 492 482 786 1655 115 763 273 1447 714 82 725 925 1533 1295 321 20 Wait 2186 | . 29 29 11 44 408 4 80 21 493 118 . 201 68 500 157 23 . Move 8945 | 224 765 393 335 562 1055 78 548 212 877 515 82 427 768 869 949 276 10 Hop . | . . . . . . . . . . . . . . . . . . Pick Up 177 | 14 7 10 28 26 2 11 11 4 8 5 . 7 13 20 10 . 1 Fast Attach 42 | 4 8 . 5 5 2 1 5 1 1 2 . 1 1 2 4 . . Attach 81 | 3 . 7 6 1 1 3 16 1 3 5 . 6 3 6 13 4 3 Detach 32 | . . . . . 3 . 5 1 . 3 . 1 2 3 11 3 . Swap 113 | . 10 4 17 21 4 1 6 3 7 1 . 6 11 5 17 . . Drop 171 | 3 10 2 22 33 9 10 7 2 12 2 . 7 13 21 15 2 1 Fire 776 | 50 48 41 58 86 49 7 72 13 45 30 . 68 22 66 108 13 . Melee 105 | . . . . 3 9 . 13 15 1 2 . . 24 22 11 . 5 Ram . | . . . . . . . . . . . . . . . . . . Kick 2 | . . . . . . . . . . . . . . 2 . . . Crush 17 | . 1 6 . 5 5 . . . . . . . . . . . . Escape Stasis 17 | . . . . . . . . . . . . . . 17 . . . Rewire 140 | . . . . . 108 . . . . 31 . 1 . . . . . Trap . | . . . . . . . . . . . . . . . . . . Miscellaneous . | . . . . . . . . . . . . . . . . . . Route ------- -11/Junkyard -10/Materials (discovered 5 exits: *Mat x3 / [*Min x2]) -10/Mines -9/Materials (discovered 5 exits: [*Mat] / Min x2 / *Sto x2) -9/Storage -9/Recycling -7/Factory -7/Garrison -7/Factory (discovered 2 exits: *Fac / [*Low]) -7/Lower Caves (discovered 2 exits: [*Low] / *Dat) -7/Lower Caves -7/Data Miner -6/Proximity Caves -6/Factory (discovered 2 exits: *Low / Gar) -6/Garrison (discovered 3 exits: *Fac x3) -6/Factory (discovered 5 exits: [*Fac] / *Low x2 / Ext x2) -6/Lower Caves -6/Lower Caves History --------- Turn | Location | Event 12 | -11/Junkyard | Discovered new exit (range 14) 332 | -11/Junkyard | Entered Materials 360 | -10/Materials | Build established: Mutant 443 | -10/Materials | Discovered new exit (range 14) 875 | -10/Materials | Discovered new exit (range 6) 981 | -10/Materials | Discovered new exit (range 9) 1464 | -10/Materials | Discovered new exit (range 12) 1546 | -10/Materials | Discovered new exit (range 4) 1648 | -10/Materials | Entered Mines 1718 | -10/Mines | Lost 3 parts (3w) 1776 | -10/Mines | Core integrity fell below 50% 1963 | -10/Mines | Build established: Scavenger-Mutant 1986 | -10/Mines | Found a damaged Exp. Sensor Array with a note attached 1990 | -10/Mines | Found Prototype Device 2421 | -10/Mines | Core integrity fell below 20% 2444 | -10/Mines | Discovered new exit (range 13) 2467 | -10/Mines | Entered Materials 2467 | -9/Materials | Evolved 2 slots: Utility x2 3032 | -9/Materials | Identified Exp. Sensor Array 3083 | -9/Materials | Discovered new exit (range 11) 3205 | -9/Materials | Build established: Mutant 3390 | -9/Materials | Identified exit to Mines 3390 | -9/Materials | Identified exit to Storage 3456 | -9/Materials | Entered Storage 4256 | -9/Storage | First assault squad dispatched 4775 | -9/Storage | Core integrity fell below 50% 4962 | -9/Storage | Met a pair of Derelict thieves 5182 | -9/Storage | Used back door to open Recycling access 5182 | -9/Storage | Discovered new exit (range 5) 5192 | -9/Storage | Entered Recycling 5198 | -9/Recycling | Found Scrap Engine 5262 | -9/Recycling | Spotter reported a threat 5270 | -9/Recycling | Spotter reported a threat 5289 | -9/Recycling | Spotter reported a threat 5292 | -9/Recycling | Spotter reported a threat 5385 | -9/Recycling | Spotter reported a threat 5390 | -9/Recycling | Spotter reported a threat 5390 | -9/Recycling | Spotter reported a threat 5390 | -9/Recycling | Spotter reported a threat 5424 | -9/Recycling | Spotter reported a threat 5426 | -9/Recycling | Spotter reported a threat 5443 | -9/Recycling | Spotter reported a threat 5443 | -9/Recycling | Spotter reported a threat 5443 | -9/Recycling | Spotter reported a threat 5477 | -9/Recycling | Spotter reported a threat 5479 | -9/Recycling | Spotter reported a threat 5488 | -9/Recycling | Spotter reported a threat 5495 | -9/Recycling | Spotter reported a threat 5530 | -9/Recycling | Spotter reported a threat 5537 | -9/Recycling | Spotter reported a threat 5548 | -9/Recycling | Spotter reported a threat 5555 | -9/Recycling | Spotter reported a threat 5556 | -9/Recycling | Spotter reported a threat 5559 | -9/Recycling | Spotter reported a threat 5559 | -9/Recycling | Spotter reported a threat 5571 | -9/Recycling | Spotter reported a threat 5590 | -9/Recycling | Spotter reported a threat 5608 | -9/Recycling | Spotter reported a threat 5612 | -9/Recycling | Spotter reported a threat 5634 | -9/Recycling | Spotter reported a threat 5640 | -9/Recycling | Spotter reported a threat 5685 | -9/Recycling | Spotter reported a threat 5697 | -9/Recycling | Spotter reported a threat 5712 | -9/Recycling | Spotter reported a threat 5712 | -9/Recycling | Spotter reported a threat 5716 | -9/Recycling | Spotter reported a threat 5740 | -9/Recycling | Spotter reported a threat 5756 | -9/Recycling | Spotter reported a threat 5757 | -9/Recycling | Spotter reported a threat 5761 | -9/Recycling | Spotter reported a threat 5765 | -9/Recycling | Spotter reported a threat 5765 | -9/Recycling | Spotter reported a threat 5826 | -9/Recycling | Spotter reported a threat 5830 | -9/Recycling | Spotter reported a threat 5883 | -9/Recycling | Spotter reported a threat 5913 | -9/Recycling | Spotter reported a threat 5945 | -9/Recycling | Discovered new exit (range 5) 5962 | -9/Recycling | Spotter reported a threat 5971 | -9/Recycling | Spotter reported a threat 5990 | -9/Recycling | Spotter reported a threat 5995 | -9/Recycling | Spotter reported a threat 5995 | -9/Recycling | Spotter reported a threat 6021 | -9/Recycling | Spotter reported a threat 6024 | -9/Recycling | Spotter reported a threat 6048 | -9/Recycling | Spotter reported a threat 6048 | -9/Recycling | Spotter reported a threat 6074 | -9/Recycling | Spotter reported a threat 6077 | -9/Recycling | Spotter reported a threat 6096 | -9/Recycling | Spotter reported a threat 6169 | -9/Recycling | Spotter reported a threat 6169 | -9/Recycling | Spotter reported a threat 6171 | -9/Recycling | Spotter reported a threat 6173 | -9/Recycling | Spotter reported a threat 6183 | -9/Recycling | Spotter reported a threat 6190 | -9/Recycling | Spotter reported a threat 6193 | -9/Recycling | Spotter reported a threat 6207 | -9/Recycling | Spotter reported a threat 6222 | -9/Recycling | Spotter reported a threat 6224 | -9/Recycling | Spotter reported a threat 6226 | -9/Recycling | Spotter reported a threat 6246 | -9/Recycling | Spotter reported a threat 6266 | -9/Recycling | Spotter reported a threat 6269 | -9/Recycling | Spotter reported a threat 6275 | -9/Recycling | Spotter reported a threat 6279 | -9/Recycling | Spotter reported a threat 6299 | -9/Recycling | Spotter reported a threat 6332 | -9/Recycling | Spotter reported a threat 6362 | -9/Recycling | Spotter reported a threat 6373 | -9/Recycling | Spotter reported a threat 6392 | -9/Recycling | Spotter reported a threat 6396 | -9/Recycling | Spotter reported a threat 6437 | -9/Recycling | Spotter reported a threat 6438 | -9/Recycling | Spotter reported a threat 6442 | -9/Recycling | Spotter reported a threat 6448 | -9/Recycling | Spotter reported a threat 6499 | -9/Recycling | Spotter reported a threat 6511 | -9/Recycling | Spotter reported a threat 6528 | -9/Recycling | Spotter reported a threat 6573 | -9/Recycling | Spotter reported a threat 6575 | -9/Recycling | Spotter reported a threat 6627 | -9/Recycling | Spotter reported a threat 6629 | -9/Recycling | Build established: Construct 6644 | -9/Recycling | Spotter reported a threat 6898 | -9/Recycling | Spotter reported a threat 6903 | -9/Recycling | Spotter reported a threat 6911 | -9/Recycling | Spotter reported a threat 7006 | -9/Recycling | Spotter reported a threat 7024 | -9/Recycling | Spotter reported a threat 7148 | -9/Recycling | Spotter reported a threat 7150 | -9/Recycling | Spotter reported a threat 7186 | -9/Recycling | Spotter reported a threat 7203 | -9/Recycling | Spotter reported a threat 7267 | -9/Recycling | Spotter reported a threat 7350 | -9/Recycling | Spotter reported a threat 7361 | -9/Recycling | Spotter reported a threat 7413 | -9/Recycling | Spotter reported a threat 7415 | -9/Recycling | Spotter reported a threat 7496 | -9/Recycling | Spotter reported a threat 7496 | -9/Recycling | Spotter reported a threat 7513 | -9/Recycling | Spotter reported a threat 7636 | -9/Recycling | Spotter reported a threat 7692 | -9/Recycling | Spotter reported a threat 7738 | -9/Recycling | Spotter reported a threat 7752 | -9/Recycling | Spotter reported a threat 7779 | -9/Recycling | Spotter reported a threat 7788 | -9/Recycling | Spotter reported a threat 7798 | -9/Recycling | Spotter reported a threat 7805 | -9/Recycling | Spotter reported a threat 7827 | -9/Recycling | Spotter reported a threat 7832 | -9/Recycling | Spotter reported a threat 7867 | -9/Recycling | Spotter reported a threat 7876 | -9/Recycling | Spotter reported a threat 7899 | -9/Recycling | Spotter reported a threat 7922 | -9/Recycling | Spotter reported a threat 7922 | -9/Recycling | Spotter reported a threat 7952 | -9/Recycling | Spotter reported a threat 7969 | -9/Recycling | Spotter reported a threat 7975 | -9/Recycling | Spotter reported a threat 7975 | -9/Recycling | Spotter reported a threat 8002 | -9/Recycling | Build established: Commander-Construct 8018 | -9/Recycling | Spotter reported a threat 8028 | -9/Recycling | Spotter reported a threat 8052 | -9/Recycling | Spotter reported a threat 8059 | -9/Recycling | Spotter reported a threat 8059 | -9/Recycling | Spotter reported a threat 8062 | -9/Recycling | Spotter reported a threat 8072 | -9/Recycling | Spotter reported a threat 8110 | -9/Recycling | Spotter reported a threat 8110 | -9/Recycling | Spotter reported a threat 8112 | -9/Recycling | Spotter reported a threat 8247 | -9/Recycling | Spotter reported a threat 8264 | -9/Recycling | Spotter reported a threat 8319 | -9/Recycling | Spotter reported a threat 8335 | -9/Recycling | Spotter reported a threat 8337 | -9/Recycling | Spotter reported a threat 8361 | -9/Recycling | Spotter reported a threat 8365 | -9/Recycling | Spotter reported a threat 8388 | -9/Recycling | Spotter reported a threat 8416 | -9/Recycling | Spotter reported a threat 8416 | -9/Recycling | Spotter reported a threat 8437 | -9/Recycling | Spotter reported a threat 8467 | -9/Recycling | Spotter reported a threat 8467 | -9/Recycling | Spotter reported a threat 8469 | -9/Recycling | Spotter reported a threat 8469 | -9/Recycling | Spotter reported a threat 8518 | -9/Recycling | Spotter reported a threat 8518 | -9/Recycling | Spotter reported a threat 8518 | -9/Recycling | Spotter reported a threat 8520 | -9/Recycling | Spotter reported a threat 8569 | -9/Recycling | Spotter reported a threat 8569 | -9/Recycling | Spotter reported a threat 8569 | -9/Recycling | Spotter reported a threat 8571 | -9/Recycling | Spotter reported a threat 8620 | -9/Recycling | Spotter reported a threat 8622 | -9/Recycling | Spotter reported a threat 8624 | -9/Recycling | Spotter reported a threat 8671 | -9/Recycling | Spotter reported a threat 8675 | -9/Recycling | Spotter reported a threat 8681 | -9/Recycling | Spotter reported a threat 8706 | -9/Recycling | Spotter reported a threat 8722 | -9/Recycling | Spotter reported a threat 8722 | -9/Recycling | Spotter reported a threat 8734 | -9/Recycling | Spotter reported a threat 8763 | -9/Recycling | Spotter reported a threat 8773 | -9/Recycling | Spotter reported a threat 8773 | -9/Recycling | Spotter reported a threat 8816 | -9/Recycling | Spotter reported a threat 8824 | -9/Recycling | Spotter reported a threat 8826 | -9/Recycling | Spotter reported a threat 8864 | -9/Recycling | Spotter reported a threat 8869 | -9/Recycling | Spotter reported a threat 8875 | -9/Recycling | Spotter reported a threat 8877 | -9/Recycling | Spotter reported a threat 8926 | -9/Recycling | Spotter reported a threat 8926 | -9/Recycling | Spotter reported a threat 8926 | -9/Recycling | Spotter reported a threat 8978 | -9/Recycling | Spotter reported a threat 8979 | -9/Recycling | Spotter reported a threat 8979 | -9/Recycling | Spotter reported a threat 8979 | -9/Recycling | Spotter reported a threat 9028 | -9/Recycling | Spotter reported a threat 9028 | -9/Recycling | Spotter reported a threat 9028 | -9/Recycling | Spotter reported a threat 9032 | -9/Recycling | Spotter reported a threat 9079 | -9/Recycling | Spotter reported a threat 9081 | -9/Recycling | Spotter reported a threat 9081 | -9/Recycling | Spotter reported a threat 9085 | -9/Recycling | Spotter reported a threat 9118 | -9/Recycling | Entered Factory 9118 | -7/Factory | Accompanied by 4 allies 9118 | -7/Factory | Evolved 4 slots: Power x1, Propulsion x2, Utility x1 9302 | -7/Factory | Identified exit to Garrison 9302 | -7/Factory | Entered Garrison 9302 | -7/Garrison | Accompanied by 4 allies 9366 | -7/Garrison | Triggered checkpoint 9663 | -7/Garrison | Lost 5 parts (2n2u1w) 9668 | -7/Garrison | Triggered checkpoint 9768 | -7/Garrison | Discovered new exit (range 12) 9904 | -7/Garrison | Triggered checkpoint 9927 | -7/Garrison | Build established: Mutant 9950 | -7/Garrison | Lost 7 parts (1p3n1u2w) 10457 | -7/Garrison | Build established: Scavenger-Mutant 10718 | -7/Garrison | Entered Factory 10718 | -7/Factory | Discovered new exit (range 16) 10868 | -7/Factory | Core integrity fell below 50% 11195 | -7/Factory | Discovered new exit (range 9) 11226 | -7/Factory | Entered Lower Caves 11261 | -7/Lower Caves | Met a Warlord Commander 11262 | -7/Lower Caves | Learned location of Warlord (-4) 11264 | -7/Lower Caves | Found Encrypted Comm Array 11447 | -7/Lower Caves | Build established: Mutant 12019 | -7/Lower Caves | Build established: Construct 12830 | -7/Lower Caves | A Derelict revealed a hidden shortcut to meet someone special 12844 | -7/Lower Caves | Learned Factory trap positions 12929 | -7/Lower Caves | Encountered a Warlord checkpoint 13371 | -7/Lower Caves | Discovered new exit (range 3) 13732 | -7/Lower Caves | Entered another Lower Caves area 13960 | -7/Lower Caves | Attracted the attention of an 0b10 outpost 14070 | -7/Lower Caves | Lost 4 parts (2n1u1w) 14323 | -7/Lower Caves | Build established: Mutant 14636 | -7/Lower Caves | Build established: Construct 15133 | -7/Lower Caves | Discovered new exit (range 16) 15360 | -7/Lower Caves | Entered Data Miner 15360 | -7/Data Miner | Accompanied by 1 ally 15360 | -7/Data Miner | Discovered new exit (range 6) 15423 | -7/Data Miner | Met Data Miner 15479 | -7/Data Miner | Learned location of Section 7 (-2) 15479 | -7/Data Miner | Acquired the access code to Warlord's prototype stash 15539 | -7/Data Miner | Received God Mode back door access code from Data Miner 15631 | -7/Data Miner | Entered Proximity Caves 15631 | -6/Proximity Caves | Accompanied by 1 ally 15742 | -6/Proximity Caves | Escorted by Enhanced Grunt 15750 | -6/Proximity Caves | Attracted the attention of an 0b10 checkpoint 15900 | -6/Proximity Caves | Spotted B-75 Beast 15908 | -6/Proximity Caves | Allies destroyed B-75 Beast 15947 | -6/Proximity Caves | Found Prototype Device 15948 | -6/Proximity Caves | Identified Exp. Thermal Shield 16798 | -6/Proximity Caves | Core integrity fell below 20% 16853 | -6/Proximity Caves | Destroyed 7 combat bots 17156 | -6/Proximity Caves | Discovered new exit (range 10) 17191 | -6/Proximity Caves | Entered Factory 17191 | -6/Factory | Evolved 2 slots: Power x1, Weapon x1 17192 | -6/Factory | Loaded intel: 125 trap records 17824 | -6/Factory | Discovered new exit (range 6) 18082 | -6/Factory | Repaired Broken Exp. Sensor Array? 18735 | -6/Factory | Joined by Warlord Geek squad 18982 | -6/Factory | Identified exit to Garrison 18982 | -6/Factory | Entered Garrison 19076 | -6/Garrison | Triggered checkpoint 19407 | -6/Garrison | Discovered new exit (range 12) 19864 | -6/Garrison | Triggered checkpoint 19890 | -6/Garrison | Triggered checkpoint 19936 | -6/Garrison | Discovered new exit (range 10) 19961 | -6/Garrison | Triggered checkpoint 20055 | -6/Garrison | Learned Factory security intel 20352 | -6/Garrison | Found Relay Coupler [Proto] 20356 | -6/Garrison | Found Relay Coupler [Proto] 20359 | -6/Garrison | Found Relay Coupler [Proto] 20363 | -6/Garrison | Found Relay Coupler [Proto] 20399 | -6/Garrison | Attempted to access garrison exit controls, blocked by remote lockdown 20545 | -6/Garrison | Attempted to access garrison exit controls, blocked by remote lockdown 20678 | -6/Garrison | Discovered new exit (range 14) 21153 | -6/Garrison | Entered Factory 21503 | -6/Factory | First assault squad dispatched 21642 | -6/Factory | Discovered new exit (range 5) 21656 | -6/Factory | Joined by Warlord Dakka squad 21689 | -6/Factory | Incoming assault squad redirected 21754 | -6/Factory | Discovered new exit (range 11) 21873 | -6/Factory | Incoming assault squad redirected 21979 | -6/Factory | Core integrity fell below 50% 22187 | -6/Factory | Cargo convoy interrupted 22411 | -6/Factory | Joined by Warlord Muscle squad 22478 | -6/Factory | Specialist reinforcements revealed to be Infiltrators 22650 | -6/Factory | Joined by Warlord Infantry squad 22764 | -6/Factory | Found Hvy. Reactive Plating 22843 | -6/Factory | Identified exit to Lower Caves 22843 | -6/Factory | Identified exit to Extension 22908 | -6/Factory | Destroyed 8 combat bots 22949 | -6/Factory | Core integrity fell below 20% 23153 | -6/Factory | Entered Lower Caves 23502 | -6/Lower Caves | Attracted the attention of an 0b10 base 23562 | -6/Lower Caves | Discovered new exit (range 9) 23571 | -6/Lower Caves | Entered another Lower Caves area 23572 | -6/Lower Caves | Encountered a Warlord checkpoint 23605 | -6/Lower Caves | Destroyed by S-27 Virus with Autogun Last Messages --------------- 23523_ System corrupted: Matter fused (-9). 23562_ EXIT=FOUND 23568_ Scrap Engine modifies Flying CIT-Cooled Exoskeleton: Support -18. LOCATION=UNKNOWN GOAL=ESCAPE 23571_ Dropped Hrd. Heavy Armor Plating. 23572_ AB-S38(M): "Estimated chance of a MAIN.C patrol making it through here: 0%. Unless they've got a Behemoth in tow, in which case it's probably closer to 100%." 23573_ Acquired Hrd. Heavy Armor Plating. 23575_ 2VY< N Map ----- +----------------------------------------------------+ | ?????????????????????????????????????????????????? | | ?????????????????????????????????????????????????? | | ?????????????????????????????????????????????????? | | ?????????????????????????????????????????????????? | | ?????????????????????????????????????????????????? | | ?????????????????????????????????????????????????? | | ?????????????????????????????????????????????????? | | ?????????????????????????????????????????????????? | | ?????????????????????????????????????????????????? | | ?????????????????????????????????????????????????? | | ?????????????????????????????????????????????????? | | ?????????????????????????????????????????????????? | | ?????????????????????????????????????????????????? | | ?????????????????????????????????????????????????? | | ?????????????????????????#####???###?????????????? | | ????????????????????????## #?? $??????????????? | | ????????????????????????# #? ???????????????? | | ????????????????????##### # #????????????????? | | ???????????????????## # #????????????????? | | ???????????????????# #????????????????? | | ?????????? ???????# #######??????????? | | ????????? ##???# #????????? | | ????????? ?##### ??????? | | ??????????? ???## # #### ??????? | | ????????????????# ###%# #??????????????? | | ?????????????????# @# #??????????????? | | ?????????????????#### s%= #??????????????? | | ????????????????????# s #??????????????? | | ???????????????????# ## #??????????????? | | ?????????????????? #?###########??????????????? | | ???????????????? ???????????????????????????? | | ???????????????# ???????????????????????????? | | ???????????????## ????????????????????????????? | | ????????????????# ????????????????????????????? | | ???????????????? ????????????????????????????? | | ??????????????? ?????????????????????????????? | | ?????????????? ?????????????????????????????? | | ??????????????## ??????????????????????????????? | | ????????????????# ??????????????????????????????? | | ?????????????????????????????????????????????????? | | ?????????????????????????????????????????????????? | | ?????????????????????????????????????????????????? | | ?????????????????????????????????????????????????? | | ?????????????????????????????????????????????????? | | ?????????????????????????????????????????????????? | | ?????????????????????????????????????????????????? | | ?????????????????????????????????????????????????? | | ?????????????????????????????????????????????????? | | ?????????????????????????????????????????????????? | | ?????????????????????????????????????????????????? | +----------------------------------------------------+ Best States ------------- Heat Dissipation 75 Energy Generation 46 Energy Capacity 1100 Matter Stores 300 Matter Capacity 300 Sight Range 16 Terrain Scan Density 10 Jamming Range 12 Armor Coverage 600 Resistance: KI 30 Utility Shielding 33 Evasion (%) 60 Targeting Accuracy 6 Recoil Reduction 4 Item Schematics ----------------- Huge Storage Unit | -10/Materials | Hacked Med. Storage Unit | -10/Materials | Hacked Shield Generator | -9/Recycling | Hacked Missile Launcher | -9/Recycling | Hacked Imp. Light Cannon | -9/Recycling | Hacked Combat Drone Bay | -7/Data Miner | Free Cld. Cesium-ion Thruster | -7/Data Miner | Free Lgt. Regenerative Plating | -7/Data Miner | Free Exp. Weapon Shielding | -7/Data Miner | Free Imp. Heavy Machine Gun | -7/Data Miner | Free Field Propulsion Drive | -7/Data Miner | Free Adv. Salvage Targeting Computer | -7/Data Miner | Free Hyp. Gauss Cannon | -7/Data Miner | Free Adv. Hacking Suite | -7/Data Miner | Free Robot Schematics ------------------ H-66 Slayer | -7/Data Miner | Free L-41 Fighter | -7/Data Miner | Free D-53 Grenadier | -7/Data Miner | Free G-50 Soldier | -7/Data Miner | Free S-27 Virus | -7/Data Miner | Free E-15 Imp | -7/Data Miner | Free Fabricated ------------ Nothing Alien Tech Used ----------------- None Achievements -------------- None Challenges ------------ None Game ------ Seed AntigravMediumExoskeleton Manual? 0 Play Time 04:39:13 Cumulative 391.7 hours Start 2023.02.09 @ 23:20:59 End 2023.02.10 @ 04:04:23 Sessions 1 Manual Loads 0 Difficulty Rogue Special Mode None Game No. 337 Rogue 337 Adventurer 0 Explorer 0 Win Type - Total 6 Types 4/1/0/0/0/0/1/0/0 Lore% 74 Gallery% 86 Achievement% 71 Wizard Run 0 Options --------- ASCII 0 Keyboard 0 Movement Numpad Keybinds 0 Fullscreen 2 Font 24/Terminus Map View 76x50 Tactical HUD 1 Map Filters NONE Filters NONE Steam 1 RUN: a4e9127c-c9c7-4bb3-89c1-e063b076cfb0